fUST/lending_fUST_20240619
["ID","MTS","AMOUNT","RATE_DAILY","PERIOD"]
[329833054,1718726851229,-150.0,0.000189,2]
[329833055,1718726851250,-621.80447578,0.00018995,2]
[329833056,1718726953945,50000.0,0.0002558,120]
[329833058,1718726970127,40000.0,0.0002578,60]
[329833059,1718726984400,47902.81329839,0.00026,60]
[329833172,1718727032346,-2451.89604696,0.00018995,2]
[329833173,1718727032356,-197.75477942,0.00018995,2]
[329833174,1718727032367,-411.771649,0.00019096,2]
[329833175,1718727032377,-257.46445177,0.00019399,2]
[329833176,1718727032388,-274.2,0.0001949,3]
[329833177,1718727032398,-822.6,0.0001949,3]
[329833178,1718727032408,-300.0,0.00019495,2]
[329833179,1718727032419,-300.0,0.00019495,2]
[329833180,1718727032429,-686.94663372,0.00019496,2]
[329833181,1718727032440,-262.0931471,0.00019496,2]
[329833182,1718727032451,-286.07406684,0.00019496,2]
[329833183,1718727032461,-509.16628447,0.00019496,2]
[329833184,1718727032481,-242.57106669,0.00019496,2]
[329833185,1718727032492,-1443.06916914,0.00019496,2]
[329833186,1718727032502,-157.8110493,0.00019496,2]
[329833187,1718727032511,-500.0,0.00019497,2]
[329833188,1718727032520,-1089.16,0.00019497,2]
[329833189,1718727032531,-500.0,0.00019497,2]
[329833190,1718727032541,-1441.13349089,0.00019498,2]
[329833553,1718727037963,-500.0,0.00019497,2]
[329833554,1718727037976,-7905.90093212,0.00019498,2]
[329833555,1718727037986,-500.0,0.00019498,2]
[329833557,1718727037996,-584.29218765,0.00019498,2]
[329833559,1718727038006,-500.0,0.00019498,2]
[329833561,1718727038016,-500.0,0.00019498,2]
[329833563,1718727038026,-500.0,0.00019498,2]
[329833564,1718727038036,-500.0,0.00019498,2]
[329833565,1718727038047,-500.0,0.00019498,2]
[329833566,1718727038057,-500.0,0.00019498,2]
[329833567,1718727038067,-500.0,0.00019498,2]
[329833568,1718727038077,-500.0,0.00019498,2]
[329833569,1718727038087,-500.0,0.00019498,2]
[329833570,1718727038101,-500.0,0.00019498,2]
[329833571,1718727038111,-507.39892745,0.00019498,2]
[329833572,1718727038121,-500.0,0.00019498,2]
[329833573,1718727038133,-500.0,0.00019498,2]
[329833574,1718727038143,-500.0,0.00019498,2]
[329833575,1718727038153,-500.0,0.00019498,2]
[329833576,1718727038164,-500.0,0.00019498,2]
[329833577,1718727038175,-1849.18,0.00019498,2]
[329833578,1718727038184,-500.0,0.00019498,2]
[329833579,1718727038195,-500.0,0.00019498,2]
[329833581,1718727038205,-406.1297036,0.00019498,2]
[329833583,1718727038216,-500.0,0.00019498,2]
[329833585,1718727038231,-500.0,0.00019498,2]
[329833587,1718727038240,-500.0,0.00019498,2]
[329833589,1718727038250,-500.0,0.00019498,2]
[329833591,1718727038260,-500.26,0.00019498,2]
[329833593,1718727038269,-500.0,0.00019498,2]
[329833595,1718727038279,-500.0,0.00019498,2]
[329833597,1718727038288,-500.0,0.00019498,2]
[329833599,1718727038297,-500.0,0.00019498,2]
[329833601,1718727038307,-500.0,0.00019498,2]
[329833603,1718727038316,-500.0,0.00019498,2]
[329833605,1718727038326,-500.0,0.00019498,2]
[329833607,1718727038335,-500.0,0.00019498,2]
[329833609,1718727038345,-500.0,0.00019498,2]
[329833611,1718727038355,-1304.57,0.00019498,2]
[329833613,1718727038365,-500.0,0.00019498,2]
[329833615,1718727038374,-500.0,0.00019498,2]
[329833617,1718727038384,-500.0,0.00019498,2]
[329833619,1718727038393,-500.0,0.00019498,2]
[329833622,1718727038403,-500.0,0.00019498,2]
[329833623,1718727038413,-500.0,0.00019498,2]
[329833626,1718727038427,-500.0,0.00019498,2]
[329833628,1718727038436,-500.0,0.00019498,2]
[329833629,1718727038445,-500.0,0.00019498,2]
[329833632,1718727038455,-578.43,0.00019498,2]
[329833634,1718727038464,-500.0,0.00019498,2]
[329833636,1718727038478,-500.0,0.00019498,2]
[329833637,1718727038487,-500.0,0.00019498,2]
[329833638,1718727038497,-500.0,0.00019498,2]
[329833640,1718727038507,-500.0,0.00019498,2]
[329833642,1718727038517,-500.0,0.00019498,2]
[329833644,1718727038527,-500.0,0.00019498,2]
[329833646,1718727038538,-500.0,0.00019498,2]
[329833648,1718727038548,-500.0,0.00019498,2]
[329833650,1718727038559,-500.0,0.00019498,2]
[329833652,1718727038569,-500.0,0.00019498,2]
[329833654,1718727038579,-500.0,0.00019498,2]
[329833656,1718727038588,-513.05,0.00019498,2]
[329833658,1718727038598,-1643.49,0.00019498,2]
[329833660,1718727038607,-500.0,0.00019498,2]
[329833662,1718727038617,-500.0,0.00019498,2]
[329833664,1718727038626,-500.0,0.00019498,2]
[329833666,1718727038635,-500.0,0.00019498,2]
[329833668,1718727038644,-500.0,0.00019498,2]
[329833670,1718727038654,-294.0,0.00019498,2]
[329833672,1718727038663,-500.0,0.00019498,2]
[329833674,1718727038673,-242.74793433,0.00019498,2]
[329833676,1718727038682,-500.0,0.00019498,2]
[329833678,1718727038692,-500.0,0.00019498,2]
[329833680,1718727038701,-500.0,0.00019498,2]
[329833681,1718727038711,-500.0,0.00019498,2]
[329833683,1718727038724,-500.0,0.00019498,2]
[329833685,1718727038733,-500.0,0.00019498,2]
[329833687,1718727038743,-500.0,0.00019498,2]
[329833689,1718727038753,-500.0,0.00019498,2]
[329833690,1718727038763,-500.0,0.00019498,2]
[329833691,1718727038772,-500.0,0.00019498,2]
[329833692,1718727038781,-500.0,0.00019498,2]
[329833693,1718727038790,-500.0,0.00019498,2]
[329833694,1718727038800,-500.0,0.00019498,2]
[329833695,1718727038812,-500.0,0.00019498,2]
[329833696,1718727038821,-500.0,0.00019499,2]
[329833697,1718727038830,-505.79303844,0.00019499,2]
[329833698,1718727038839,-500.0,0.00019499,2]
[329833699,1718727038849,-500.0,0.00019499,2]
[329833700,1718727038858,-500.0,0.00019499,2]
[329833701,1718727038868,-500.0,0.00019499,2]
[329833702,1718727038877,-500.0,0.00019499,2]
[329833703,1718727038886,-634.24530655,0.00019499,2]
[329833704,1718727038895,-558.0,0.00019499,2]
[329833705,1718727038905,-500.0,0.00019499,2]
[329833706,1718727038915,-500.0,0.00019499,2]
[329833707,1718727038924,-500.0,0.00019499,2]
[329833708,1718727038934,-500.0,0.00019499,2]
[329833709,1718727038943,-629.79,0.00019499,2]
[329833710,1718727038953,-500.0,0.00019499,2]
[329833711,1718727038962,-156.62261596,0.00019499,2]
[329833712,1718727038977,-500.0,0.00019499,2]
[329833713,1718727038987,-538.13452789,0.00019499,2]
[329833714,1718727038999,-500.0,0.00019499,2]
[329833716,1718727039010,-500.0,0.00019499,2]
[329833718,1718727039020,-500.0,0.00019499,2]
[329833720,1718727039030,-500.0,0.00019499,2]
[329833722,1718727039041,-314.94747973,0.00019499,2]
[329833724,1718727039051,-500.0,0.00019499,2]
[329833725,1718727039062,-500.0,0.00019499,2]
[329833727,1718727039073,-500.0,0.00019499,2]
[329833730,1718727039084,-500.0,0.00019499,2]
[329833732,1718727039096,-500.0,0.00019499,2]
[329833733,1718727039108,-500.0,0.00019499,2]
[329833735,1718727039126,-500.0,0.00019499,2]
[329833737,1718727039137,-500.0,0.00019499,2]
[329833739,1718727039148,-500.0,0.00019499,2]
[329833741,1718727039160,-517.74667691,0.00019499,2]
[329833743,1718727039172,-500.0,0.00019499,2]
[329833745,1718727039182,-500.0,0.00019499,2]
[329833747,1718727039194,-500.0,0.00019499,2]
[329833749,1718727039209,-500.0,0.00019499,2]
[329833751,1718727039226,-500.0,0.00019499,2]
[329833753,1718727039237,-304.20454673,0.00019499,2]
[329833755,1718727039248,-500.0,0.00019499,2]
[329833757,1718727039259,-500.0,0.00019499,2]
[329833760,1718727039270,-500.0,0.00019499,2]
[329833762,1718727039280,-1643.49,0.00019499,2]
[329833764,1718727039291,-1643.49,0.00019499,2]
[329833766,1718727039301,-430.75836772,0.00019499,2]
[329833768,1718727039311,-500.0,0.00019499,2]
[329833770,1718727039321,-500.0,0.00019499,2]
[329833772,1718727039331,-393.9356039,0.00019499,2]
[329833774,1718727039347,-106.0643961,0.00019499,2]
[329833776,1718727039358,-1692.69386756,0.000195,2]
[329833778,1718727039370,-1553.47829692,0.000195,2]
[329833834,1718727040687,-370.33268568,0.00019499,2]
[329833835,1718727040759,-500.0,0.00019498,2]
[329833836,1718727040769,-442.77731432,0.00019499,2]
[329833837,1718727040778,-500.0,0.00019499,2]
[329833838,1718727040788,-12826.42268568,0.000195,2]
[329833839,1718727040801,-18511.86189717,0.000195,2]
[329833840,1718727040818,-8646.43040248,0.000195,2]
[329833841,1718727040828,-32903.32495245,0.000195,2]
[329833885,1718727043180,-1352.94956658,0.000195,2]
[329833886,1718727043197,-9360.48511611,0.000195,2]
[329833887,1718727043209,-1113.64779278,0.000195,2]
[329833888,1718727043224,-234.59257208,0.000195,2]
[329833889,1718727043233,-153.0,0.000195,2]
[329833891,1718727043244,-153.0,0.000195,2]
[329833893,1718727043253,-153.0,0.000195,2]
[329833895,1718727043262,-153.0,0.000195,2]
[329833896,1718727043273,-153.0,0.000195,2]
[329833897,1718727043282,-153.0,0.000195,2]
[329833898,1718727043411,-153.0,0.000195,2]
[329833899,1718727043422,-153.0,0.000195,2]
[329833900,1718727043432,-47.90553061,0.000195,2]
[329833911,1718727046124,-471.37355978,0.00019498,2]
[329833912,1718727046137,-28.62644022,0.00019498,2]
[329833913,1718727046146,-105.09446939,0.000195,2]
[329833914,1718727046156,-153.0,0.000195,2]
[329833915,1718727046165,-153.0,0.000195,2]
[329833916,1718727046177,-153.0,0.000195,2]
[329833917,1718727046187,-153.0,0.000195,2]
[329833918,1718727046197,-153.0,0.000195,2]
[329833919,1718727046206,-92.99690199,0.000195,2]
[329833921,1718727046217,-60.00309801,0.000195,2]
[329833923,1718727046229,-153.0,0.000195,2]
[329833925,1718727046238,-153.0,0.000195,2]
[329833927,1718727046247,-153.0,0.000195,2]
[329833929,1718727046256,-153.0,0.000195,2]
[329833931,1718727046266,-153.0,0.000196,2]
[329833933,1718727046274,-153.0,0.000196,2]
[329833935,1718727046283,-153.0,0.000196,2]
[329833936,1718727046293,-1089.16,0.00019771,2]
[329833937,1718727046302,-1849.18,0.00019772,2]
[329833938,1718727046311,-500.0,0.00019772,2]
[329833939,1718727046320,-1304.57,0.00019772,2]
[329833940,1718727046329,-500.0,0.00019772,2]
[329833941,1718727046339,-500.0,0.00019772,2]
[329833942,1718727046349,-500.0,0.00019772,2]
[329833943,1718727046358,-578.43,0.00019772,2]
[329833944,1718727046367,-1643.49,0.00019772,2]
[329833945,1718727046376,-271.23249917,0.00019772,2]
[329833949,1718727327168,675.28,0.000141,2]
[329833952,1718727618249,2039.04626728,9.999e-05,2]
[329833953,1718727676696,1502.97942967,9.999e-05,2]
[329833954,1718727676766,155.07263954,9.999e-05,2]
[329833955,1718727677718,19322.75605349,9.999e-05,2]
[329833956,1718727691751,300.53331152,9.999e-05,2]
[329833957,1718727695666,19322.75605349,9.999e-05,2]
[329833958,1718727696891,172.99379975,9.999e-05,2]
[329833959,1718727713670,5537.02930884,9.999e-05,2]
[329833960,1718727717699,302.41916613,9.999e-05,2]
[329833961,1718728024930,3123.2011782,9.999e-05,4]
[329833962,1718728028141,-1718.81969319,0.00017999,2]
[329833963,1718728146117,-199.5042352,0.00017558,2]
[329834162,1718728238722,-1295.99851881,0.00017993,2]
[329834163,1718728238734,-998.94856013,0.00017993,2]
[329834164,1718728238805,-398.141,0.00017993,2]
[329834172,1718728241270,-2039.04626728,0.00017992,2]
[329834173,1718728241280,-380.6124438,0.00017993,2]
[329834174,1718728241289,-4055.0,0.00018,2]
[329834175,1718728241298,-300.0,0.00018666,2]
[329834176,1718728241307,-383.87966476,0.00018667,4]
[329834177,1718728241318,-288.06976136,0.00018669,2]
[329834207,1718728243527,-237.59669134,0.00018669,2]
[329834209,1718728243536,-300.0,0.0001867,2]
[329834211,1718728243546,-100.53223258,0.00018671,2]
[329834212,1718728243559,-4579.08396544,0.00018671,2]
[329834214,1718728243571,-565.82812723,0.00018671,2]
[329834243,1718728246577,-8939.20351559,0.00018671,2]
[329834246,1718728246588,-967.37,0.00018671,2]
[329834280,1718728298185,282.79394345,9.999e-05,2]
[329834285,1718728327208,1502.97942967,9.999e-05,2]
[329834288,1718728338639,190.79368548,0.00017669,2]
[329834289,1718728338660,6637.46922093,0.00017669,2]
[329834290,1718728340078,154.78330338,9.999e-05,2]
[329834294,1718728365090,265.87919368,9.999e-05,2]
[329834295,1718728365207,524.9323134,9.999e-05,2]
[329834296,1718728365363,1344.59965403,9.999e-05,2]
[329834297,1718728365941,412.02215163,9.999e-05,2]
[329834298,1718728369023,182.21961827,9.999e-05,2]
[329834299,1718728369062,154.78330338,9.999e-05,2]
[329834301,1718728373115,516.34209078,9.999e-05,2]
[329834303,1718728377737,2036.00603243,9.999e-05,2]
[329834304,1718728386461,548.4,0.00010959,2]
[329834305,1718728393406,272.83177117,9.999e-05,2]
[329834306,1718728397796,286.17638205,9.999e-05,2]
[329834307,1718728404223,687.11689634,9.999e-05,2]
[329834308,1718728410704,159.22422045,9.999e-05,2]
[329834309,1718728416707,262.37089328,9.999e-05,2]
[329834311,1718728430821,154.78330338,9.999e-05,2]
[329834312,1718728447155,490.57628256,9.999e-05,2]
[329834313,1718728458495,373.24376354,9.999e-05,2]
[329834328,1718728780808,1502.97942967,9.999e-05,2]
[329834330,1718728837993,1432.7450532,9.999e-05,2]
[329834335,1718729245157,-732.8827837,0.00015067,2]
[329834336,1718729245193,-2039.04626728,0.00015993,2]
[329834337,1718729245218,-300.0,0.00015994,2]
[329834338,1718729245402,-135.57591339,0.00015994,2]
[329834340,1718729277515,1432.7450532,9.999e-05,2]
[329834341,1718729345295,-626.348036,0.0001504,2]
[329834342,1718729345315,-3073.70052274,0.00015064,2]
[329834343,1718729345336,-521.3112284,0.00015065,2]
[329834344,1718729345358,-300.0,0.00015989,2]
[329834345,1718729345378,-10553.9474558,0.0001599,2]
[329834346,1718729345399,-2645.4033021,0.00015991,2]
[329834347,1718729345420,-1431.63574026,0.00015992,2]
[329834348,1718729345441,-1284.93678761,0.00015993,2]
[329834349,1718729345461,-508.1884819,0.00016012,2]
[329834350,1718729345480,-17844.48561387,0.00016262,2]
[329834351,1718729346109,-2715.2595762,0.00016262,2]
[329834352,1718729351121,-3542.48438833,0.00016262,2]
[329834353,1718729351143,-929.3601145,0.00016337,2]
[329834354,1718729351162,-2476.91548945,0.00016437,2]
[329834355,1718729351185,-500.0,0.00016438,2]
[329834356,1718729351206,-500.0,0.00016438,2]
[329834357,1718729351226,-500.0,0.00016438,2]
[329834358,1718729351248,-1509.69,0.00016438,2]
[329834359,1718729351268,-500.0,0.00016438,2]
[329834360,1718729351290,-500.0,0.00016438,2]
[329834361,1718729351309,-500.0,0.00016438,2]
[329834362,1718729351330,-500.0,0.00016438,2]
[329834363,1718729351350,-500.0,0.00016438,2]
[329834364,1718729351371,-500.0,0.00016438,2]
[329834365,1718729351391,-502.53192493,0.00016438,2]
[329834366,1718729351411,-500.0,0.00016438,2]
[329834367,1718729351433,-500.0,0.00016438,2]
[329834368,1718729351452,-206.19123036,0.00016438,2]
[329834369,1718729351472,-500.0,0.00016438,2]
[329834370,1718729351492,-500.0,0.00016438,2]
[329834371,1718729351512,-500.0,0.00016438,2]
[329834372,1718729351533,-500.0,0.00016438,2]
[329834373,1718729351553,-251.75164236,0.00016438,2]
[329834374,1718729351573,-546.60304038,0.00016438,2]
[329834375,1718729351594,-500.0,0.00016438,2]
[329834376,1718729351614,-500.0,0.00016438,2]
[329834377,1718729351634,-500.0,0.00016438,2]
[329834378,1718729351653,-803.29767764,0.00016443,2]
[329834379,1718729351674,-500.0,0.00016712,2]
[329834380,1718729351701,-1509.69,0.00016712,2]
[329834381,1718729351724,-500.0,0.00016712,2]
[329834382,1718729351746,-500.0,0.00016712,2]
[329834383,1718729351768,-500.0,0.00016712,2]
[329834384,1718729351791,-500.0,0.00016712,2]
[329834385,1718729351811,-500.0,0.00016712,2]
[329834386,1718729351831,-500.0,0.00016712,2]
[329834387,1718729351852,-500.0,0.00016712,2]
[329834388,1718729351873,-500.0,0.00016712,2]
[329834389,1718729351898,-500.0,0.00016712,2]
[329834390,1718729351919,-500.0,0.00016986,2]
[329834391,1718729351945,-1509.69,0.00016986,2]
[329834392,1718729351966,-500.0,0.00016986,2]
[329834393,1718729351989,-500.0,0.00016986,2]
[329834394,1718729352010,-500.0,0.00016986,2]
[329834395,1718729352030,-500.0,0.00016986,2]
[329834396,1718729352050,-500.0,0.00016986,2]
[329834397,1718729352071,-500.0,0.00016986,2]
[329834398,1718729352091,-500.0,0.00016986,2]
[329834399,1718729357432,569.3,0.00016438,2]
[329834400,1718729357677,500.0,0.00016438,2]
[329834401,1718729357720,569.3,0.00016712,2]
[329834402,1718729357992,569.3,0.00016986,2]
[329834403,1718729358272,500.0,0.00016712,2]
[329834404,1718729358548,500.0,0.00016986,2]
[329834405,1718729360532,501.98543412,0.00016438,2]
[329834406,1718729364098,500.0,0.00016438,2]
[329834407,1718729371983,500.0,0.00016438,2]
[329834408,1718729372384,1920.20312566,0.00016438,2]
[329834409,1718729372408,4318.68687434,0.00016438,2]
[329834410,1718729379908,400.23223608,0.00016438,2]
[329834411,1718729379932,103.40116824,0.00016438,2]
[329834412,1718729390348,500.0,0.00016438,2]
[329834413,1718729394003,500.39791796,0.00016438,2]
[329834414,1718729396036,500.0,0.00016438,2]
[329834415,1718729396242,500.0,0.00016712,2]
[329834416,1718729396506,500.0,0.00016986,2]
[329834417,1718729398790,500.0,0.00016438,2]
[329834418,1718729402146,500.0,0.00016438,2]
[329834419,1718729402414,500.0,0.00016712,2]
[329834420,1718729402680,499.78,0.00016986,2]
[329834421,1718729419045,501.37298059,0.00016438,2]
[329834422,1718729424595,500.0,0.00016662,2]
[329834423,1718729424880,500.0,0.00016936,2]
[329834424,1718729426263,500.0,0.00016438,2]
[329834425,1718729427033,48.43116008,0.00016438,2]
[329834462,1718729432506,-451.56883992,0.00016438,2]
[329834464,1718729432515,-14.43116008,0.00016438,2]
[329834466,1718729432526,-416.6733073,0.00016438,2]
[329834467,1718729432538,-68.89553262,0.00016438,2]
[329834468,1718729432547,-500.0,0.00016438,2]
[329834469,1718729432557,-134.86811088,0.00016712,2]
[329834473,1718729432682,-365.13188912,0.00016712,2]
[329834474,1718729432692,-230.06811088,0.00016712,2]
[329834475,1718729432704,-269.93188912,0.00016712,2]
[329834476,1718729432714,-500.0,0.00016986,2]
[329834477,1718729432723,-230.06811088,0.00017257,2]
[329834478,1718729432735,-279.34415462,0.00017257,2]
[329834479,1718729432749,-2564.28825724,0.00017257,2]
[329834480,1718729432758,-300.0,0.00017258,2]
[329834481,1718729432768,-300.0,0.00017258,2]
[329834482,1718729432777,-515.35624672,0.00017259,2]
[329834562,1718729439269,-291.97428362,0.00016438,2]
[329834564,1718729439282,-209.82653067,0.00016438,2]
[329834566,1718729439293,-500.0,0.00016438,2]
[329834568,1718729439304,-759.43103783,0.00016662,2]
[329834570,1718729439316,-561.54896217,0.00016662,2]
[329834573,1718729439330,-1320.98,0.00016936,2]
[329834575,1718729439344,-1320.98,0.0001721,2]
[329834577,1718729439358,-103.22011383,0.00017259,2]
[329834580,1718729439372,-10095.44178626,0.00017259,2]
[329834582,1718729439385,-500.0,0.0001726,2]
[329834584,1718729439397,-500.0,0.0001726,2]
[329834586,1718729439408,-500.0,0.0001726,2]
[329834588,1718729439422,-500.0,0.0001726,2]
[329834591,1718729439435,-500.0,0.0001726,2]
[329834593,1718729439448,-500.0,0.0001726,2]
[329834597,1718729439460,-500.0,0.0001726,2]
[329834599,1718729439472,-569.3,0.0001726,2]
[329834600,1718729439485,-500.0,0.0001726,2]
[329834601,1718729439500,-500.0,0.0001726,2]
[329834602,1718729439513,-1320.98,0.00017484,2]
[329834603,1718729439526,-500.0,0.00017534,2]
[329834604,1718729439540,-500.0,0.00017534,2]
[329834605,1718729439553,-500.0,0.00017534,2]
[329834606,1718729439566,-550.0,0.00017534,2]
[329834607,1718729439578,-569.3,0.00017534,2]
[329834608,1718729439590,-2682.661792,0.00017534,2]
[329834609,1718729439603,-151.0,0.00017534,2]
[329834610,1718729439615,-2682.661792,0.00017534,2]
[329834611,1718729439628,-151.0,0.00017534,2]
[329834613,1718729439641,-500.0,0.00017534,2]
[329834614,1718729439653,-226.28898488,0.00017565,2]
[329834615,1718729439665,-1414.99028413,0.00017658,4]
[329834616,1718729439677,-159.0166627,0.0001766,2]
[329834617,1718729439688,-262.01159832,0.0001766,2]
[329834618,1718729439699,-155.3788407,0.0001766,2]
[329834619,1718729439711,-763.81193336,0.00017661,2]
[329834620,1718729439722,-181.90811968,0.00017663,2]
[329834621,1718729439734,-323.63034002,0.00017663,2]
[329834622,1718729439747,-317.64353351,0.00017663,2]
[329834623,1718729439759,-187.46396613,0.00017663,2]
[329834624,1718729439772,-308.57908582,0.00017663,2]
[329834625,1718729439785,-208.48799237,0.00017663,2]
[329834626,1718729439797,-529.80682725,0.00017663,2]
[329834627,1718729439810,-509.1606772,0.00017663,2]
[329834628,1718729439825,-272.4770988,0.00017663,2]
[329834629,1718729439838,-285.87829837,0.00017663,2]
[329834630,1718729439850,-155.01550155,0.00017665,2]
[329834631,1718729439860,-2898.90572468,0.00017665,2]
[329834632,1718729439871,-1340.60374189,0.00017665,2]
[329834634,1718729439881,-410.57806509,0.00017665,2]
[329834635,1718729439893,-265.87919368,0.00017665,2]
[329834636,1718729439905,-230.37226234,0.00017665,2]
[329834637,1718729439918,-2682.661792,0.00017665,2]
[329834638,1718729439931,-151.0,0.00017665,2]
[329834639,1718729439945,-2682.661792,0.00017665,2]
[329834640,1718729439955,-151.0,0.00017665,2]
[329834641,1718729439966,-771.32002447,0.00017666,2]
[329834642,1718729439977,-500.0,0.00017666,2]
[329834643,1718729439987,-500.0,0.00017666,2]
[329834644,1718729440000,-518.26970359,0.00017666,2]
[329834645,1718729440017,-500.0,0.00017666,2]
[329834646,1718729440029,-500.0,0.00017666,2]
[329834647,1718729440039,-1715.91,0.00017666,2]
[329834648,1718729440050,-157.202612,0.00017666,2]
[329834649,1718729440060,-500.0,0.00017666,2]
[329834650,1718729440071,-500.0,0.00017666,2]
[329834651,1718729440081,-500.0,0.00017666,2]
[329834652,1718729440092,-500.0,0.00017666,2]
[329834653,1718729440104,-500.0,0.00017666,2]
[329834654,1718729440115,-459.2208761,0.00017666,2]
[329834655,1718729440126,-500.0,0.00017666,2]
[329834656,1718729440137,-500.0,0.00017666,2]
[329834657,1718729440148,-500.0,0.00017666,2]
[329834658,1718729440159,-501.46805972,0.00017666,2]
[329834659,1718729440170,-510.40175934,0.00017666,2]
[329834660,1718729440181,-728.25,0.00017666,2]
[329834661,1718729440192,-514.8226524,0.00017666,2]
[329834662,1718729440203,-151.568617,0.00017666,2]
[329834663,1718729440213,-231.812815,0.00017666,2]
[329834665,1718729440225,-231.812815,0.00017666,2]
[329834667,1718729440237,-587.65,0.00017666,2]
[329834670,1718729440251,-231.812815,0.00017666,2]
[329834672,1718729440262,-231.812815,0.00017666,2]
[329834674,1718729440273,-231.812815,0.00017666,2]
[329834677,1718729440285,-231.812815,0.00017666,2]
[329834680,1718729440297,-500.0,0.00017666,2]
[329834682,1718729440308,-500.0,0.00017666,2]
[329834684,1718729440320,-500.0,0.00017666,2]
[329834685,1718729440331,-493.31327871,0.00017666,2]
[329834686,1718729440343,-500.0,0.00017666,2]
[329834687,1718729440354,-500.0,0.00017666,2]
[329834688,1718729440366,-500.0,0.00017666,2]
[329834689,1718729440378,-500.0,0.00017666,2]
[329834690,1718729440389,-226.29745101,0.00017666,2]
[329834691,1718729440400,-500.0,0.00017666,2]
[329834692,1718729440412,-500.0,0.00017666,2]
[329834693,1718729440423,-500.0,0.00017666,2]
[329834694,1718729440434,-881.784166,0.00017666,2]
[329834695,1718729440446,-500.0,0.00017666,2]
[329834696,1718729440457,-881.784166,0.00017666,2]
[329834697,1718729440468,-881.784166,0.00017666,2]
[329834698,1718729440479,-881.784166,0.00017666,2]
[329834699,1718729440490,-881.784166,0.00017666,2]
[329834700,1718729440505,-881.784166,0.00017666,2]
[329834701,1718729440517,-585.836596,0.00017666,2]
[329834702,1718729440528,-585.836596,0.00017666,2]
[329834703,1718729440539,-585.836596,0.00017666,2]
[329834704,1718729440551,-500.0,0.00017666,2]
[329834705,1718729440562,-585.836596,0.00017666,2]
[329834707,1718729440574,-781.8,0.00017666,2]
[329834709,1718729440585,-585.836596,0.00017666,2]
[329834710,1718729440596,-585.836596,0.00017666,2]
[329834711,1718729440607,-500.0,0.00017666,2]
[329834712,1718729440619,-612.58281593,0.00017666,2]
[329834713,1718729440630,-500.0,0.00017666,2]
[329834715,1718729440641,-6238.89,0.00017666,2]
[329834716,1718729440652,-500.0,0.00017666,2]
[329834717,1718729440809,-1173.43,0.00017666,2]
[329834718,1718729440824,-500.0,0.00017666,2]
[329834719,1718729440834,-2682.661792,0.00017666,2]
[329834720,1718729440844,-500.0,0.00017666,2]
[329834721,1718729440854,-2682.661792,0.00017666,2]
[329834722,1718729440864,-500.0,0.00017666,2]
[329834723,1718729440873,-2682.661792,0.00017666,2]
[329834724,1718729440883,-500.0,0.00017666,2]
[329834725,1718729440893,-151.0,0.00017666,2]
[329834726,1718729440903,-151.0,0.00017666,2]
[329834727,1718729440914,-500.0,0.00017666,2]
[329834728,1718729440929,-151.0,0.00017666,2]
[329834729,1718729440938,-2682.661792,0.00017666,2]
[329834730,1718729440948,-2682.661792,0.00017666,2]
[329834731,1718729440959,-500.0,0.00017666,2]
[329834732,1718729440969,-2682.661792,0.00017666,2]